fUST/lending_fUST_20250623
["ID","MTS","AMOUNT","RATE_DAILY","PERIOD"]
[367004840,1750612248282,-477.26734212,0.0002491,2]
[367004841,1750612248291,-1500.0,0.0002491,2]
[367004842,1750612248301,-1500.0,0.0002491,2]
[367004843,1750612248310,-1500.0,0.0002491,2]
[367004844,1750612248320,-886.74924885,0.0002491,2]
[367004845,1750612248330,-1513.59940963,0.0002491,2]
[367004846,1750612248341,-1000.0,0.0002492,5]
[367004847,1750612248351,-704.6,0.00024925,6]
[367004848,1750612248362,-1407.52,0.00024931,3]
[367004849,1750612248372,-800.0,0.00024931,2]
[367004850,1750612248383,-204.0,0.00024932,7]
[367004851,1750612248393,-4499.1412378,0.00024932,2]
[367004852,1750612248403,-500.0,0.00024936,2]
[367004853,1750612248416,-1000.0,0.0002494,5]
[367004854,1750612248426,-1100.0,0.00024942,2]
[367004855,1750612248436,-152.3768496,0.0002495,2]
[367004856,1750612248446,-1100.0,0.0002495,2]
[367004857,1750612248457,-1000.0,0.0002496,5]
[367004858,1750612248468,-5888.0,0.00024967,2]
[367004859,1750612248479,-1334.78315807,0.00024969,12]
[367004860,1750612248489,-1100.0,0.00024979,2]
[367004861,1750612248499,-1000.0,0.0002498,5]
[367004862,1750612248513,-1119.301354,0.0002498,5]
[367004863,1750612248523,-5888.0,0.00024995,2]
[367004864,1750612248533,-10244.0,0.00025,15]
[367004865,1750612248544,-10025.40978269,0.00025,7]
[367004866,1750612248554,-14496.52975322,0.00025,7]
[367004867,1750612248565,-264973.74915806,0.00025,7]
[367004868,1750612248576,-200.0,0.00025,7]
[367004869,1750612248586,-151.0,0.00025,7]
[367004870,1750612248596,-500.0,0.00025,3]
[367004871,1750612248606,-21616.43231289,0.00025,10]
[367004872,1750612248617,-151.0,0.00025,7]
[367004873,1750612248627,-151.0,0.00025,7]
[367004874,1750612248637,-500.0,0.00025,2]
[367004875,1750612248647,-500.0,0.00025,2]
[367004876,1750612248657,-500.0,0.00025,7]
[367004877,1750612248667,-500.0,0.00025,7]
[367004878,1750612248677,-500.0,0.00025,2]
[367004879,1750612248687,-500.0,0.00025,15]
[367004880,1750612248697,-500.0,0.00025,10]
[367004881,1750612248707,-500.0,0.00025,2]
[367004882,1750612248717,-500.0,0.00025,15]
[367004883,1750612248728,-500.0,0.00025,15]
[367004884,1750612248737,-500.0,0.00025,10]
[367004885,1750612248748,-500.0,0.00025,7]
[367004886,1750612248761,-500.0,0.00025,7]
[367004887,1750612248771,-500.0,0.00025,2]
[367004888,1750612248781,-500.0,0.00025,10]
[367004889,1750612248791,-500.0,0.00025,15]
[367004890,1750612248802,-500.0,0.00025,15]
[367004891,1750612248812,-500.0,0.00025,7]
[367004892,1750612248823,-500.0,0.00025,10]
[367004893,1750612248833,-500.0,0.00025,2]
[367004894,1750612248843,-500.0,0.00025,7]
[367004895,1750612248853,-500.0,0.00025,7]
[367004896,1750612248863,-500.0,0.00025,15]
[367004897,1750612248873,-500.0,0.00025,10]
[367004898,1750612248882,-500.0,0.00025,7]
[367004899,1750612248893,-500.0,0.00025,15]
[367004900,1750612248904,-500.0,0.00025,15]
[367004901,1750612248914,-500.0,0.00025,10]
[367004902,1750612248924,-500.0,0.00025,7]
[367004903,1750612248933,-500.0,0.00025,10]
[367004904,1750612248943,-500.0,0.00025,10]
[367004905,1750612248953,-500.0,0.00025,15]
[367004906,1750612248963,-500.0,0.00025,15]
[367004907,1750612248973,-500.0,0.00025,15]
[367004908,1750612248983,-500.0,0.00025,15]
[367004909,1750612248993,-500.0,0.00025,2]
[367004910,1750612249003,-500.0,0.00025,10]
[367004911,1750612249016,-500.0,0.00025,10]
[367004912,1750612249027,-500.0,0.00025,10]
[367004913,1750612249038,-500.0,0.00025,15]
[367004914,1750612249049,-500.0,0.00025,15]
[367004915,1750612249059,-500.0,0.00025,10]
[367004916,1750612249070,-500.0,0.00025,7]
[367004917,1750612249081,-283.02,0.00025,10]
[367004918,1750612249091,-174946.76488995,0.00025,2]
[367004919,1750612249101,-151.0,0.00025,7]
[367004920,1750612249111,-151.0,0.00025,7]
[367004921,1750612249121,-312.755757,0.00025,7]
[367004922,1750612249132,-312.755757,0.00025,7]
[367004923,1750612249143,-209.800505,0.00025,7]
[367004924,1750612249153,-209.800505,0.00025,7]
[367004925,1750612249163,-151.0,0.00025,7]
[367004926,1750612249174,-154.181441,0.00025,7]
[367004927,1750612249184,-813.370501,0.00025,7]
[367004928,1750612249194,-813.370501,0.00025,7]
[367004929,1750612249204,-151.0,0.00025,7]
[367004930,1750612249214,-151.0,0.00025,7]
[367004931,1750612249224,-151.0,0.00025,7]
[367004932,1750612249234,-151.0,0.00025,7]
[367004933,1750612249244,-251.622977,0.00025,7]
[367004934,1750612249255,-251.622977,0.00025,7]
[367004935,1750612249268,-151.0,0.00025,7]
[367004936,1750612249278,-159.110228,0.00025,7]
[367004937,1750612249290,-159.110228,0.00025,7]
[367004938,1750612249301,-328.485967,0.00025,7]
[367004939,1750612249311,-328.485967,0.00025,7]
[367004940,1750612249321,-317.0,0.00025,3]
[367004941,1750612249332,-317.0,0.00025,3]
[367004942,1750612249343,-317.0,0.00025,3]
[367004943,1750612249353,-263.54140191,0.00025,3]
[367004944,1750612249364,-317.0,0.00025,3]
[367004945,1750612249374,-388.21387,0.00025,7]
[367004946,1750612249384,-388.21387,0.00025,7]
[367004947,1750612249395,-4807.070084,0.00025,7]
[367004948,1750612249405,-4807.070084,0.00025,7]
[367004949,1750612249415,-892.564033,0.00025,2]
[367004950,1750612249590,-892.564033,0.00025,2]
[367004951,1750612249601,-151.0,0.00025,7]
[367004952,1750612249611,-151.0,0.00025,7]
[367004953,1750612249620,-784.217425,0.00025,7]
[367004954,1750612249630,-151.0,0.00025,7]
[367004955,1750612249639,-151.0,0.00025,7]
[367004956,1750612249648,-784.217425,0.00025,7]
[367004957,1750612249658,-151.0,0.00025,7]
[367004958,1750612249668,-152.896342,0.00025,7]
[367004959,1750612249678,-151.0,0.00025,7]
[367004960,1750612249687,-151.0,0.00025,7]
[367004961,1750612249697,-151.0,0.00025,7]
[367004962,1750612249707,-3000.0,0.00025,2]
[367004963,1750612249717,-155.434656,0.00025,7]
[367004964,1750612249727,-151.0,0.00025,7]
[367004965,1750612249737,-151.0,0.00025,7]
[367004966,1750612249746,-151.0,0.00025,7]
[367004967,1750612249756,-151.0,0.00025,7]
[367004968,1750612249768,-509.733003,0.00025,7]
[367004969,1750612249778,-509.733003,0.00025,7]
[367004970,1750612249787,-160.0,0.00025,3]
[367004971,1750612249798,-151.0,0.00025,7]
[367004972,1750612249809,-151.0,0.00025,7]
[367004973,1750612249819,-151.0,0.00025,7]
[367004974,1750612249829,-3898.051183,0.00025,7]
[367004975,1750612249839,-151.0,0.00025,7]
[367004976,1750612249849,-151.0,0.00025,7]
[367004977,1750612249859,-1308.561249,0.00025,7]
[367004978,1750612249869,-1308.561249,0.00025,7]
[367004979,1750612249880,-151.0,0.00025,7]
[367004980,1750612249890,-151.0,0.00025,7]
[367004981,1750612249899,-151.0,0.00025,7]
[367004982,1750612249908,-151.0,0.00025,7]
[367004983,1750612249918,-445.095563,0.00025,7]
[367004984,1750612249929,-153.014725,0.00025,7]
[367004985,1750612249938,-151.0,0.00025,7]
[367004986,1750612249947,-151.0,0.00025,7]
[367004987,1750612249957,-5000.0,0.00025,10]
[367004988,1750612249966,-300.266723,0.00025,7]
[367004989,1750612249976,-300.266723,0.00025,7]
[367004990,1750612249986,-204.496924,0.00025,7]
[367004991,1750612249995,-204.496924,0.00025,7]
[367004992,1750612250005,-151.0,0.00025,7]
[367004993,1750612250016,-186.279732,0.00025,7]
[367004994,1750612250027,-186.279732,0.00025,7]
[367004995,1750612250037,-151.0,0.00025,7]
[367004996,1750612250046,-151.0,0.00025,7]
[367004997,1750612250056,-151.0,0.00025,7]
[367004998,1750612250066,-151.0,0.00025,7]
[367004999,1750612250075,-151.0,0.00025,7]
[367005000,1750612250085,-151.0,0.00025,7]
[367005001,1750612250095,-151.0,0.00025,7]
[367005002,1750612250105,-1000.0,0.00025,5]
[367005003,1750612250114,-1000.0,0.00025,5]
[367005004,1750612250124,-498.758184,0.00025,7]
[367005005,1750612250133,-498.758184,0.00025,7]
[367005006,1750612250143,-202.730835,0.00025,7]
[367005007,1750612250153,-202.730835,0.00025,7]
[367005008,1750612250162,-155.280896,0.00025,7]
[367005009,1750612250172,-155.280896,0.00025,7]
[367005010,1750612250182,-227.700959,0.00025,7]
[367005011,1750612250192,-231.687304,0.00025,7]
[367005012,1750612250202,-227.700959,0.00025,7]
[367005013,1750612250211,-231.687304,0.00025,7]
[367005014,1750612250221,-151.0,0.00025,7]
[367005015,1750612250230,-174.131419,0.00025,7]
[367005016,1750612250239,-174.131419,0.00025,7]
[367005017,1750612250250,-205.282615,0.00025,7]
[367005018,1750612250260,-205.282615,0.00025,7]
[367005019,1750612250270,-151.0,0.00025,7]
[367005020,1750612250279,-317.0,0.00025,3]
[367005021,1750612250289,-2053.569512,0.00025,7]
[367005022,1750612250298,-12551.52821599,0.00025,10]
[367005023,1750612250308,-2053.569512,0.00025,7]
[367005024,1750612250318,-425.01221603,0.00025,10]
[367005025,1750612250328,-187.872181,0.00025,2]
[367005026,1750612250338,-160.0,0.00025,10]
[367005027,1750612250347,-160.0,0.00025,10]
[367005028,1750612250357,-151.0,0.00025,7]
[367005029,1750612250366,-1514.891968,0.00025,7]
[367005030,1750612250376,-1514.891968,0.00025,7]
[367005031,1750612250386,-524.02598587,0.00025,10]
[367005032,1750612250396,-519.461295,0.00025,7]
[367005033,1750612250405,-519.461295,0.00025,7]
[367005034,1750612250415,-846.39664074,0.00025,10]
[367005035,1750612250425,-230.14598372,0.00025,10]
[367005036,1750612250435,-230.14598372,0.00025,3]
[367005037,1750612250444,-213.59462818,0.00025,10]
[367005038,1750612250454,-160.0,0.00025,10]
[367005039,1750612250464,-213.59462818,0.00025,3]
[367005040,1750612250474,-213.59462818,0.00025,10]
[367005041,1750612250484,-160.0,0.00025,3]
[367005042,1750612250493,-1748.0,0.00025,3]
[367005043,1750612250503,-204.0,0.00025,7]
[367005044,1750612250514,-317.0,0.00025,3]
[367005045,1750612250524,-317.0,0.00025,3]
[367005046,1750612250533,-317.0,0.00025,3]
[367005047,1750612250543,-500.0,0.0002501,3]
[367005048,1750612250552,-3000.0,0.0002501,2]
[367005049,1750612250562,-3000.0,0.0002502,2]
[367005050,1750612250572,-504.11801205,0.00025021,2]
[367005051,1750612250582,-1000.0,0.00025021,2]
[367005052,1750612250591,-300.0,0.00025021,2]
[367005053,1750612250601,-1000.0,0.00025021,2]
[367005054,1750612250610,-1000.0,0.00025021,2]
[367005055,1750612250619,-203.40291267,0.00025021,2]
[367005056,1750612250629,-500.0,0.00025021,2]
[367005057,1750612250638,-1000.0,0.00025021,2]
[367005058,1750612250647,-246.41409241,0.00025021,2]
[367005059,1750612250656,-1000.0,0.00025021,2]
[367005060,1750612250666,-1000.0,0.00025021,2]
[367005061,1750612250675,-1000.0,0.00025021,2]
[367005062,1750612250685,-222.81406767,0.00025021,2]
[367005063,1750612250694,-537.95529762,0.00025021,2]
[367005064,1750612250705,-1089.93396126,0.00025021,2]
[367005065,1750612250715,-1100.0,0.00025028,2]
[367005066,1750612250725,-500.0,0.0002503,3]
[367005067,1750612250734,-3000.0,0.0002503,2]
[367005068,1750612250743,-3000.0,0.0002504,2]
[367005069,1750612250753,-1100.0,0.00025046,2]
[367005070,1750612250764,-151.0,0.00025049,7]
[367005071,1750612250774,-500.0,0.0002505,3]
[367005072,1750612250784,-3000.0,0.0002505,2]
[367005073,1750612250794,-2918.96,0.00025054,2]
[367005074,1750612250804,-3000.0,0.0002506,2]
[367005075,1750612250817,-200.0,0.00025068,120]
[367005076,1750612250828,-1500.0,0.00025068,2]
[367005077,1750612250837,-500.0,0.0002507,3]
[367005078,1750612250847,-3000.0,0.0002507,2]
[367005079,1750612250858,-3000.0,0.0002508,2]
[367005080,1750612250867,-500.0,0.0002509,3]
[367005081,1750612250877,-3000.0,0.0002509,2]
[367005082,1750612250888,-151.0,0.00025096,7]
[367005083,1750612250898,-151.0,0.00025096,7]
[367005084,1750612250907,-500.0,0.000251,3]
[367005085,1750612250917,-3000.0,0.000251,2]
[367005086,1750612250927,-3000.0,0.00025103,2]
[367005087,1750612250937,-1334.78315807,0.00025107,12]
[367005088,1750612250946,-4499.1412378,0.00025108,2]
[367005089,1750612250955,-684.0,0.0002511,3]
[367005090,1750612250964,-3000.0,0.0002511,2]
[367005091,1750612250975,-3000.0,0.0002512,2]
[367005092,1750612250985,-250.0,0.00025121,2]
[367005093,1750612250994,-3000.0,0.0002513,2]
[367005094,1750612251006,-500.0,0.00025137,2]
[367005095,1750612251020,-3000.0,0.0002514,2]
[367005096,1750612251031,-3000.0,0.0002515,2]
[367005097,1750612251041,-5689.661813,0.0002516,2]
[367005098,1750612251051,-5888.0,0.00025162,2]
[367005099,1750612251062,-1100.0,0.00025164,2]
[367005100,1750612251073,-2500.0,0.00025164,2]
[367005101,1750612251084,-151.0,0.00025174,7]
[367005102,1750612251094,-704.6,0.00025192,7]
[367005103,1750612251104,-500.0,0.000252,3]
[367005104,1750612251114,-5061.66,0.000252,7]
[367005105,1750612251124,-1407.52,0.00025205,3]
[367005106,1750612251134,-163.370699,0.00025205,7]
[367005107,1750612251143,-163.370699,0.00025205,7]
[367005108,1750612251153,-200.0,0.00025205,120]
[367005109,1750612251162,-1100.0,0.00025217,2]
[367005110,1750612251172,-188.9558762,0.00025241,2]
[367005111,1750612251182,-153.0,0.00025241,2]
[367005112,1750612251192,-354.3770296,0.00025241,2]
[367005113,1750612251201,-159.1115641,0.00025241,2]
[367005114,1750612251211,-306.0,0.00025241,2]
[367005115,1750612251222,-159.1115641,0.00025241,2]
[367005116,1750612251233,-574.6497757,0.00025241,2]
[367005117,1750612251242,-177.3077519,0.00025241,2]
[367005118,1750612251252,-159.1115641,0.00025241,2]
[367005119,1750612251264,-574.6497757,0.00025241,2]
[367005120,1750612251273,-153.0,0.00025241,2]
[367005121,1750612251283,-574.6497757,0.00025241,2]
[367005122,1750612251294,-159.1115641,0.00025241,2]
[367005123,1750612251303,-177.3077519,0.00025241,2]
[367005124,1750612251312,-153.0,0.00025241,2]
[367005125,1750612251322,-318.2231282,0.00025241,2]
[367005126,1750612251332,-1149.2995514,0.00025241,2]
[367005127,1750612251341,-159.1115641,0.00025241,2]
[367005128,1750612251350,-574.6497757,0.00025241,2]
[367005129,1750612251360,-177.3077519,0.00025241,2]
[367005130,1750612251369,-361.7429895,0.00025241,2]
[367005131,1750612251378,-574.6497757,0.00025241,2]
[367005132,1750612251388,-574.6497757,0.00025241,2]
[367005133,1750612251398,-433.6047609,0.00025241,2]
[367005134,1750612251408,-160.4183433,0.00025241,2]
[367005135,1750612251418,-153.0,0.00025241,2]
[367005136,1750612251427,-1334.78315807,0.00025245,12]
[367005137,1750612251437,-1808.36654091,0.00025246,2]
[367005138,1750612251447,-703.91097589,0.00025268,2]
[367005139,1750612251457,-4499.1412378,0.00025284,2]
[367005140,1750612251466,-70802.13,0.000253,2]
[367005141,1750612251476,-524.0,0.000253,2]
[367005142,1750612251487,-10258.6896239,0.0002533,30]
[367005143,1750612251496,-813.370501,0.0002533,7]
[367005144,1750612251506,-813.370501,0.0002533,7]
[367005145,1750612251519,-500.0,0.00025339,12]
[367005146,1750612251529,-200.0,0.00025342,120]
[367005147,1750612251539,-3680.0,0.00025346,2]
[367005148,1750612251548,-500.0,0.00025349,30]
[367005149,1750612251558,-507.70627684,0.0002536,2]
[367005150,1750612251567,-812.72434771,0.0002536,2]
[367005151,1750612251577,-1334.78315807,0.00025383,13]
[367005152,1750612251587,-1000.0,0.00025384,2]
[367005153,1750612251596,-884.514294,0.00025384,2]
[367005154,1750612251606,-158.698644,0.00025395,6]
[367005155,1750612251616,-2000.0,0.000254,2]
[367005156,1750612251626,-2000.0,0.000254,2]
[367005157,1750612251635,-500.0,0.000254,3]
[367005158,1750612251645,-213.59462818,0.000254,30]
[367005159,1750612251654,-587.0,0.0002541,2]
[367005160,1750612251666,-1000.0,0.00025421,2]
[367005161,1750612251676,-2000.0,0.00025433,2]
[367005162,1750612251685,-176.937185,0.00025443,2]
[367005163,1750612251695,-158.698644,0.00025443,2]
[367005164,1750612251704,-703.93527339,0.00025444,2]
[367005165,1750612252055,-5184.06472661,0.00025444,2]
[367005166,1750612252065,-2400.0,0.00025458,2]
[367005167,1750612252075,-2000.0,0.00025458,2]
[367005168,1750612252084,-2000.0,0.00025458,2]
[367005169,1750612252094,-203.4149335,0.00025458,2]
[367005170,1750612252110,-1796.5850665,0.00025458,2]
[367005171,1750612252119,-206.0,0.00025459,2]
[367005172,1750612252128,-704.6,0.00025459,7]
[367005173,1750612252137,-4499.1412378,0.00025461,2]
[367005174,1750612252147,-900.0,0.00025469,3]
[367005175,1750612252156,-151.0,0.00025469,7]
[367005176,1750612252166,-221.29572,0.00025469,7]
[367005177,1750612252175,-221.29572,0.00025469,7]
[367005178,1750612252184,-1407.52,0.00025479,3]
[367005179,1750612252193,-238.806029,0.00025479,7]
[367005180,1750612252202,-151.0,0.00025479,7]
[367005181,1750612252211,-312.755757,0.00025479,7]
[367005182,1750612252221,-312.755757,0.00025479,7]
[367005183,1750612252230,-209.800505,0.00025479,7]
[367005184,1750612252239,-209.800505,0.00025479,7]
[367005185,1750612252248,-200.0,0.00025479,120]
[367005186,1750612252259,-965.0,0.0002548,2]
[367005187,1750612252270,-1000.0,0.000255,2]
[367005188,1750612252279,-500.0,0.000255,3]
[367005189,1750612252289,-3680.0,0.00025515,2]
[367005190,1750612252298,-1334.78315807,0.00025521,13]
[367005191,1750612252307,-1498.0,0.00025558,2]
[367005192,1750612252317,-151.0,0.00025558,7]
[367005193,1750612252326,-578.97823101,0.00025568,2]
[367005194,1750612252335,-450.0,0.00025568,2]
[367005195,1750612252345,-1500.0,0.00025568,2]
[367005196,1750612252355,-530.34875338,0.00025568,2]
[367005197,1750612252364,-1500.0,0.00025568,2]
[367005198,1750612252374,-617.06856904,0.00025568,2]
[367005199,1750612252383,-1500.0,0.00025568,2]
[367005200,1750612252393,-1500.0,0.00025568,2]
[367005201,1750612252402,-5000.0,0.00025589,2]
[367005202,1750612252412,-500.0,0.000256,3]
[367005203,1750612252422,-158.4150231,0.00025606,2]
[367005204,1750612252431,-303.07939211,0.00025616,120]
[367005205,1750612252441,-151.0,0.00025616,7]
[367005206,1750612252451,-187.833834,0.00025616,7]
[367005207,1750612252460,-517.871107,0.00025616,7]
[367005208,1750612252470,-517.871107,0.00025616,7]
[367005209,1750612252491,-187.833834,0.00025616,7]
[367005210,1750612252501,-265.107121,0.00025616,7]
[367005211,1750612252510,-1723.05869188,0.00025616,2]
[367005212,1750612252522,-260.14,0.0002563,2]
[367005213,1750612252532,-40.70148963,0.00025637,2]
[367005214,1750612253147,-4458.43974817,0.00025637,2]
[367005215,1750612253156,-2351.0,0.0002565,2]
[367005216,1750612253166,-3500.0,0.00025651,2]
[367005217,1750612253178,-356.123823,0.00025652,2]
[367005218,1750612253187,-159.1115641,0.00025652,2]
[367005219,1750612253196,-159.1115641,0.00025652,2]
[367005220,1750612253205,-176.9937617,0.00025652,2]
[367005221,1750612253214,-573.7859869,0.00025652,2]
[367005222,1750612253223,-306.0000001,0.00025652,2]
[367005223,1750612253233,-153.0,0.00025652,2]
[367005224,1750612253242,-1334.78315807,0.00025659,13]
[367005225,1750612253251,-151.0,0.00025668,7]
[367005226,1750612253260,-519.461295,0.00025668,7]
[367005227,1750612253270,-519.461295,0.00025668,7]
[367005228,1750612253279,-8475.95856293,0.00025668,7]
[367005229,1750612253290,-36928.70348996,0.00025668,7]
[367005230,1750612253314,-2012.17133549,0.00025668,7]
[367005237,1750612748943,344.330636,0.00013699,2]
[367005240,1750612810061,4853.86655246,0.000201,2]
[367005241,1750612810085,146.13344754,0.000201,2]
[367005242,1750612825755,2568.96772435,0.000201,2]
[367005248,1750613139121,-242.08372266,0.00020187,2]
[367005249,1750613156091,-102.24691334,0.00020187,2]
[367005250,1750613156340,-300.0,0.000204,2]
[367005251,1750613156362,-138.02222422,0.000204,2]
[367005255,1750613192063,330.78751598,0.000189,2]
[367005258,1750613225039,239.79618859,0.00020087,2]
[367005259,1750613226081,-1200.0,0.000204,2]
[367005260,1750613226104,-300.0,0.000204,2]
[367005261,1750613226126,-16.19566982,0.000204,2]
[367005267,1750613228099,-213.04449298,0.000204,2]
[367005271,1750613251090,-70.7598372,0.000204,2]
[367005272,1750613251115,-141.05548496,0.000204,2]
[367005273,1750613253264,-158.94451504,0.000204,2]
[367005274,1750613253286,-100.67268428,0.00020401,2]
[367005276,1750613276013,4700.83701789,0.00018,2]
[367005278,1750613313180,1404.72571568,0.00019,2]
[367005282,1750613323117,363.18270992,0.00025,120]
[367005283,1750613323145,7336.22693985,0.0002,20]
[367005285,1750613324108,400.06835233,0.000195,2]
[367005286,1750613324433,14872.45709779,0.00018,2]
[367005287,1750613324456,1023.15381648,0.00018,2]
[367005288,1750613329950,16000.0,0.00015,2]
[367005289,1750613330764,209.72127787,0.00016,2]
[367005290,1750613332769,14767.12490565,0.0001,2]
[367005291,1750613332791,2309.88107641,0.0001,2]
[367005292,1750613333052,5899.999999,0.0002,2]
[367005315,1750613432617,-21141.81413597,0.00020472,2]
[367005316,1750613432629,-3758.18586403,0.00020472,2]
[367005317,1750613432639,-357.184067,0.00020555,2]
[367005318,1750613432648,-211.9046077,0.00020658,2]
[367005320,1750613432658,-300.0,0.00020818,2]
[367005322,1750613432668,-1200.0,0.00020818,2]
[367005324,1750613432677,-6106.00011813,0.00020819,2]
[367005327,1750613432689,-855.61259735,0.00020819,2]
[367005377,1750613438390,-176.24964483,0.00020817,2]
[367005378,1750613438399,-500.0,0.00020817,2]
[367005379,1750613438408,-500.0,0.00020817,2]
[367005380,1750613438418,-500.0,0.00020817,2]
[367005381,1750613438427,-500.0,0.00020817,2]
[367005382,1750613438437,-500.0,0.00020817,2]
[367005383,1750613438446,-500.0,0.00020817,2]
[367005384,1750613438455,-500.0,0.00020817,2]
[367005385,1750613438465,-500.0,0.00020817,2]
[367005386,1750613438474,-271.42251357,0.00020817,2]
[367005387,1750613438483,-500.0,0.00020817,2]
[367005388,1750613438493,-500.0,0.00020817,2]
[367005389,1750613438502,-500.0,0.00020817,2]
[367005390,1750613438511,-500.0,0.00020817,2]
[367005391,1750613438520,-500.0,0.00020817,2]
[367005392,1750613438529,-500.0,0.00020817,2]
[367005394,1750613438538,-500.0,0.00020817,2]
[367005395,1750613438547,-500.0,0.00020817,2]
[367005396,1750613438556,-500.0,0.00020817,2]
[367005397,1750613438565,-500.0,0.00020817,2]
[367005398,1750613438574,-500.0,0.00020817,2]
[367005399,1750613438584,-500.0,0.00020817,2]
[367005400,1750613438593,-500.0,0.00020817,2]
[367005401,1750613438602,-500.0,0.00020817,2]
[367005402,1750613438611,-500.0,0.00020817,2]
[367005403,1750613438620,-500.0,0.00020817,2]
[367005404,1750613438629,-500.0,0.00020817,2]
[367005405,1750613438638,-500.0,0.00020817,2]
[367005406,1750613438647,-500.0,0.00020817,2]
[367005407,1750613438656,-500.0,0.00020817,2]
[367005408,1750613438665,-500.0,0.00020817,2]
[367005409,1750613438674,-500.0,0.00020817,2]
[367005410,1750613438684,-500.0,0.00020817,2]
[367005411,1750613438693,-500.0,0.00020817,2]
[367005412,1750613438702,-500.0,0.00020817,2]
[367005413,1750613438711,-500.0,0.00020817,2]
[367005414,1750613438720,-3038.38728452,0.00020819,2]
[367005415,1750613438730,-1716.7670657,0.00021466,2]
[367005416,1750613438739,-1000.0,0.00021495,2]
[367005417,1750613438749,-1000.0,0.00021496,2]
[367005418,1750613438759,-1139.53124123,0.000219,6]
[367005419,1750613438768,-1030.74745911,0.00022001,2]
[367005420,1750613438777,-424.068,0.00022072,2]
[367005421,1750613438786,-1139.53124114,0.00022072,6]
[367005422,1750613438795,-24987.85192982,0.000221,2]
[367005423,1750613438811,-1754.123626,0.000221,2]
[367005424,1750613438822,-4568.90426049,0.000221,2]
[367005425,1750613438954,-21613.67656369,0.000221,2]
[367005426,1750613438964,-500.0,0.00022101,2]
[367005427,1750613438974,-207.4,0.00022107,2]
[367005428,1750613438984,-420.0,0.00022204,2]
[367005429,1750613438993,-594.35,0.00022234,10]
[367005430,1750613439002,-753.78498279,0.00022235,2]
[367005431,1750613439012,-1139.53124114,0.00022245,6]
[367005432,1750613439021,-5000.0,0.0002227,2]
[367005434,1750613439030,-584.53558699,0.0002227,2]
[367005435,1750613439241,-25000.0,0.0002227,2]
[367005436,1750613439251,-476.99208843,0.00022273,2]
[367005437,1750613439260,-500.0,0.00022273,2]
[367005438,1750613439269,-713.22,0.00022274,10]
[367005439,1750613439279,-495.29,0.00022286,10]
[367005440,1750613439288,-500.0,0.00022295,2]
[367005441,1750613439297,-327.86189897,0.00022295,2]
[367005442,1750613439307,-18187.45402144,0.00022296,14]
[367005443,1750613439317,-500.0,0.00022296,7]
[367005444,1750613439326,-500.0,0.00022296,7]
[367005445,1750613439335,-1943.97,0.000223,7]
[367005446,1750613439344,-500.0,0.00022375,2]
[367005447,1750613439354,-1139.53124114,0.00022417,7]
[367005448,1750613439363,-174.0,0.00022429,2]
[367005450,1750613439373,-1000.0,0.00022499,2]